bitfinex/quotes_ETHUSD_20250220
["timestamp","ask_amount","ask_price","bid_price","bid_amount"]
[1740037926478,4.44463,2737.4,2736.9,0.7865]
[1740037926680,3.65326,2737.3,2736.9,0.7865]
[1740037927473,3.65326,2737.3,2736.9,1.25655]
[1740037931774,7.25397,2737.5,2736.9,1.25655]
[1740037932074,3.65311,2737.4,2736.9,4.91025]
[1740037933957,7.25397,2737.5,2736.9,1.25655]
[1740037934131,3.65339,2737.2,2736.9,1.25655]
[1740037934333,3.65339,2737.2,2737.0,0.42696082]
[1740037934631,3.65318,2737.4,2737.0,0.42696082]
[1740037934837,3.65335,2737.3,2737.0,0.42696082]
[1740037938128,3.601,2737.5,2737.0,0.42696082]
[1740037939446,3.65311,2737.4,2737.0,0.42696082]
[1740037941666,7.30629,2737.4,2737.0,0.42696082]
[1740037942173,3.65311,2737.4,2737.0,0.42696082]
[1740037943269,3.65334,2737.3,2737.0,0.42696082]
[1740037943470,3.6535,2737.1,2736.9,0.7865]
[1740037943675,3.6535,2737.1,2737.0,0.26]
[1740037944076,3.6535,2737.1,2736.9,0.7865]
[1740037944277,3.6535,2737.1,2737.0,0.26]
[1740037945792,3.6535,2737.1,2737.0,1.59471528]
[1740037948363,3.65337,2737.2,2737.0,1.59471528]
[1740037948562,3.6535,2737.1,2737.0,1.59471528]
[1740037954298,3.65323,2737.3,2737.0,1.59471528]
[1740037954490,7.30658,2737.3,2737.2,1.33471528]
[1740037955295,3.65323,2737.3,2737.2,1.33471528]
[1740037958812,3.65323,2737.3,2737.0,1.59471528]
[1740037959114,3.6535,2737.1,2737.0,1.59471528]
[1740037959775,3.65323,2737.3,2737.0,1.59471528]
[1740037959980,3.65343,2737.2,2737.0,1.59471528]
[1740037963295,3.65323,2737.3,2737.0,1.59471528]
[1740037963610,3.6535,2737.1,2737.0,1.59471528]
[1740037963980,3.6534,2737.2,2737.0,1.59471528]
[1740037966795,3.6535,2737.1,2737.0,0.26]
[1740037966992,3.6535,2737.1,2736.5,3.87068035]
[1740037966993,3.65363,2737.0,2736.6,1.33471528]
[1740037967199,3.65363,2737.0,2736.8,1.59471528]
[1740037967398,0.7593,2737.1,2736.8,1.59471528]
[1740037967587,3.65351,2737.1,2737.0,1.33471528]
[1740037968107,3.65351,2737.1,2736.9,0.7702]
[1740037970817,4.43823,2737.0,2736.7,0.26]
[1740037970997,3.6539,2736.8,2736.7,0.26]
[1740037974624,3.601,2737.5,2736.7,1.0174]
[1740037974625,0.7967,2737.3,2736.7,1.0174]
[1740037974792,3.65353,2737.1,2737.0,1.33471528]
[1740037976921,3.65353,2737.1,2736.8,1.33471528]
[1740037977126,3.65383,2736.9,2736.8,1.33471528]
[1740037978119,3.64414799,2736.9,2736.8,1.33471528]
[1740037978538,3.65353,2737.1,2736.8,1.33471528]
[1740037978718,3.65365,2737.0,2736.8,1.33471528]
[1740037980039,3.65353,2737.1,2736.8,1.33471528]
[1740037980253,3.65353,2737.1,2736.8,1.56992681]
[1740037980441,7.30711,2737.1,2736.8,1.56992681]
[1740037980759,7.30713,2737.1,2736.8,1.56992681]
[1740037981354,3.65353,2737.1,2736.8,1.56992681]
[1740037981538,3.65311,2737.4,2737.0,1.33471528]
[1740037981715,3.65333,2737.3,2737.1,0.8311]
[1740037984205,3.65336,2737.2,2737.1,0.8311]
[1740037987459,3.65336,2737.2,2737.0,1.33471528]
[1740037989993,3.6535,2737.1,2737.0,1.33471528]
[1740037990367,3.65336,2737.2,2737.0,1.33471528]
[1740037991787,7.3068,2737.2,2737.0,1.33471528]
[1740037992184,3.65336,2737.2,2737.0,1.33471528]
[1740037992583,3.6535,2737.1,2737.0,1.33471528]
[1740037992764,3.65336,2737.2,2737.0,1.33471528]
[1740037993456,3.6535,2737.1,2737.0,1.33471528]
[1740037994292,3.65336,2737.2,2737.0,1.33471528]
[1740037994693,7.30681,2737.2,2737.0,1.33471528]
[1740037994996,7.3068,2737.2,2737.0,1.33471528]
[1740037995293,3.6535,2737.1,2737.0,1.33471528]
[1740037995802,3.65336,2737.2,2737.0,1.33471528]
[1740037997297,3.65344,2737.2,2737.0,1.33471528]
[1740037997476,3.6535,2737.1,2737.0,1.33471528]
[1740038001224,3.65337,2737.2,2736.9,0.766]
[1740038001504,3.65363,2737.0,2736.9,0.766]
[1740038003395,3.6535,2737.1,2736.7,1.0486]
[1740038003574,3.65377,2736.9,2736.7,1.0486]
[1740038003775,3.65377,2736.9,2736.7,2.10803153]
[1740038003976,3.65377,2736.9,2736.7,0.7886]
[1740038004304,3.65377,2736.9,2736.8,0.26]
[1740038004770,3.654,2736.8,2736.5,9.0023]
[1740038004972,3.654,2736.8,2736.6,0.26]
[1740038005406,3.654,2736.8,2736.6,1.59471528]
[1740038007412,3.65422,2736.6,2736.1,8.211]
[1740038007610,3.65422,2736.6,2736.3,1.33471528]
[1740038008283,3.65433,2736.5,2736.3,1.33471528]
[1740038008808,3.65433,2736.5,2736.2,0.7825]
[1740038008975,4.41542,2736.6,2736.2,0.7825]
[1740038009175,4.41542,2736.6,2736.3,1.33471528]
[1740038009375,3.65431,2736.5,2736.3,1.33471528]
[1740038010011,3.65431,2736.5,2736.4,0.26]
[1740038010609,4.41542,2736.6,2736.4,0.26]
[1740038010911,3.6543,2736.5,2736.4,0.26]
[1740038013890,3.6543,2736.5,2736.1,9.54571528]
[1740038014100,3.6547,2736.2,2736.1,8.211]
[1740038014408,3.6547,2736.2,2736.1,8.471]
[1740038014710,3.6547,2736.2,2736.1,9.80571528]
[1740038015289,3.6547,2736.2,2736.1,9.54571528]
[1740038015490,3.6547,2736.2,2736.1,9.80571528]
[1740038016720,3.6547,2736.2,2736.1,9.54571528]
[1740038017018,3.6547,2736.2,2736.1,9.80571528]
[1740038024331,3.6547,2736.2,2736.1,1.59471528]
[1740038033437,3.65497,2736.0,2735.9,1.33471528]
[1740038033619,3.65497,2736.0,2735.9,1.59471528]
[1740038034217,3.65497,2736.0,2735.9,0.26]
[1740038035252,3.65483,2736.1,2735.7,1.33471528]
[1740038035415,3.6549,2736.1,2735.9,1.33471528]
[1740038035749,3.601,2736.5,2735.9,2.16691528]
[1740038035750,3.6547,2736.2,2735.9,2.16691528]
[1740038036916,3.65489,2736.1,2735.9,2.16691528]
[1740038043865,7.30951,2736.2,2735.9,2.16691528]
[1740038044771,3.6547,2736.2,2735.9,2.16691528]
[1740038053466,3.65471,2736.2,2735.9,2.16691528]
[1740038064526,3.65473,2736.2,2735.9,0.8322]
[1740038064741,3.65483,2736.1,2735.9,0.8322]
[1740038065054,3.65497,2736.0,2735.6,0.804]
[1740038065216,3.65523,2735.8,2735.7,0.26]
[1740038065947,3.601,2736.1,2735.7,1.59471528]
[1740038066151,3.601,2736.1,2735.8,0.75]
[1740038067618,7.25585,2736.1,2735.8,0.75]
[1740038068431,3.601,2736.1,2735.8,0.75]
[1740038069016,7.25592,2736.1,2735.8,0.75]
[1740038070257,3.65507,2736.0,2735.8,0.75]
[1740038070436,3.65507,2736.0,2735.7,1.59471528]
[1740038071260,3.65507,2736.0,2735.7,0.26]
[1740038073360,3.65507,2736.0,2735.7,1.59471528]
[1740038073868,3.601,2736.1,2735.7,1.59471528]
[1740038074064,7.25584,2736.1,2735.7,1.59471528]
[1740038082141,3.65499,2736.0,2735.7,1.59471528]
[1740038082342,3.601,2736.1,2735.7,1.59471528]
[1740038085175,3.601,2736.1,2735.9,1.33471528]
[1740038085347,3.601,2736.1,2736.0,0.762]
[1740038088239,3.65464,2736.3,2736.0,0.762]
[1740038088440,3.65479,2736.2,2735.9,1.33471528]
[1740038088641,3.65464,2736.3,2735.9,1.33471528]
[1740038088642,3.65486,2736.1,2735.9,1.33471528]
[1740038089472,3.65486,2736.1,2735.8,0.751]
[1740038090371,3.65463,2736.3,2735.8,0.751]
[1740038090578,3.65471,2736.2,2735.8,0.751]
[1740038091875,3.65494,2736.1,2735.8,0.751]
[1740038092191,4.020504,2736.0,2735.8,0.751]
[1740038092386,3.65501,2736.0,2735.8,0.751]
[1740038093143,3.65497,2736.0,2735.8,0.751]
[1740038093874,3.65494,2736.1,2735.7,1.59471528]
[1740038094076,7.30985,2736.1,2735.7,1.59471528]
[1740038094677,3.65491,2736.1,2735.7,1.59471528]
[1740038095286,7.30984,2736.1,2735.7,1.59471528]
[1740038096582,3.65491,2736.1,2735.7,1.59471528]
[1740038097665,7.30984,2736.1,2735.7,1.59471528]
[1740038097864,3.65502,2736.0,2735.7,1.59471528]
[1740038102489,4.44612,2736.2,2735.7,1.59471528]
[1740038102791,3.65472,2736.2,2735.9,2.15621528]
[1740038105402,3.65489,2736.1,2735.9,0.8215]
[1740038105815,3.65489,2736.1,2735.7,2.37801528]
[1740038106461,3.65472,2736.2,2735.7,2.37801528]
[1740038107204,7.30953,2736.2,2735.7,2.37801528]
[1740038107405,3.65472,2736.2,2735.7,2.37801528]
[1740038107614,7.3095,2736.2,2735.7,2.37801528]
[1740038109997,3.65491,2736.1,2735.7,2.37801528]
[1740038110791,3.655,2736.0,2735.7,2.37801528]
[1740038111162,7.30953,2736.2,2735.7,2.37801528]
[1740038111357,3.65472,2736.2,2735.7,2.37801528]
[1740038111562,3.65487,2736.1,2735.7,2.37801528]
[1740038113004,7.30953,2736.2,2735.7,2.37801528]
[1740038113292,3.65472,2736.2,2735.7,2.37801528]
[1740038113497,3.65472,2736.2,2735.7,6.03334528]
[1740038113698,3.65472,2736.2,2735.7,7.00630981]
[1740038114894,8.0587,2736.4,2735.9,0.8187]
[1740038115195,3.65457,2736.3,2735.9,0.8187]
[1740038115407,3.65457,2736.3,2735.9,2.15341528]
[1740038116115,10.91005,2736.4,2735.9,2.15341528]
[1740038116301,7.2555,2736.4,2735.9,2.15341528]
[1740038116602,3.65459,2736.3,2735.9,2.15341528]
[1740038117714,7.2555,2736.4,2735.9,2.15341528]
[1740038117916,3.65477,2736.2,2735.9,2.15341528]
[1740038118601,3.65477,2736.2,2735.9,0.8187]
[1740038119705,3.65486,2736.1,2735.9,0.8187]
[1740038120307,3.65477,2736.2,2735.9,0.8187]
[1740038122493,3.65477,2736.2,2736.1,0.0408]
[1740038123613,4.903553,2736.2,2736.1,0.0408]
[1740038123819,5.690153,2736.2,2736.1,0.0408]
[1740038135841,9.291153,2736.2,2736.1,0.0408]
[1740038136468,8.504553,2736.2,2736.1,0.0408]
[1740038139453,7.25577,2736.2,2736.1,0.0408]
[1740038140664,3.601,2736.2,2736.1,0.0408]
[1740038140869,3.601,2736.2,2736.1,0.8314]
[1740038141748,3.65452,2736.4,2736.1,0.8314]
[1740038144790,3.601,2736.5,2736.1,0.8314]
[1740038144987,3.65466,2736.3,2736.1,0.8314]
[1740038145864,4.01456,2736.4,2736.1,0.8314]
[1740038146164,3.65446,2736.4,2736.1,0.8314]
[1740038151813,3.601,2737.2,2736.5,0.7997]
[1740038152121,7.2544,2737.2,2736.9,0.7997]
[1740038152318,7.2544,2737.2,2737.0,0.26]
[1740038152719,3.6535,2737.1,2737.0,0.26]
[1740038154987,10.90787,2737.2,2737.0,0.26]
[1740038155621,7.2544,2737.2,2737.0,0.26]
[1740038155819,3.6535,2737.1,2737.0,0.26]
[1740038156723,3.601,2737.2,2737.0,0.26]
[1740038156915,7.25438,2737.2,2737.0,0.26]
[1740038157722,3.65295,2737.6,2737.1,4.4851]
[1740038157723,3.65285,2737.6,2737.1,4.4851]
[1740038157891,3.65285,2737.6,2737.2,1.33471528]
[1740038159002,3.65304,2737.5,2737.1,0.8316]
[1740038159303,3.65319,2737.4,2737.1,0.8316]
[1740038159835,3.65336,2737.2,2737.1,0.8316]
[1740038160043,3.65336,2737.2,2737.0,0.26]
[1740038162841,3.65317,2737.4,2737.0,0.26]
[1740038163046,3.65317,2737.4,2737.1,0.8071]
[1740038163207,3.65297,2737.5,2737.1,0.8071]
[1740038163901,3.65297,2737.5,2737.0,1.59471528]
[1740038163902,3.601,2737.7,2737.2,5.22816681]
[1740038164106,3.65283,2737.6,2737.4,1.33471528]
[1740038164330,3.65283,2737.6,2737.3,0.7831]
[1740038165439,3.65307,2737.5,2737.3,0.7831]
[1740038165737,3.6531,2737.4,2737.3,0.7831]
[1740038166362,3.65283,2737.6,2737.3,0.7831]
[1740038166660,7.30576,2737.6,2737.3,0.7831]
[1740038166956,3.65297,2737.5,2737.3,0.7831]
[1740038167149,7.30576,2737.6,2737.3,0.7831]
[1740038167352,3.65283,2737.6,2737.3,0.7831]
[1740038169027,3.601,2737.7,2737.3,0.7831]
[1740038169260,3.601,2737.7,2737.5,0.804]
[1740038170283,4.98664528,2738.3,2737.3,0.21178153]
[1740038170284,3.652,2738.3,2737.7,0.7529]
[1740038170574,3.65221,2738.1,2737.8,0.26]
[1740038170884,7.253,2738.3,2738.0,1.33471528]
[1740038171030,3.65171,2738.5,2738.0,1.33471528]
[1740038171236,3.0,2738.4,2738.0,1.33471528]
[1740038172127,3.65191,2738.3,2737.9,0.815]
[1740038172329,3.65191,2738.3,2737.9,1.42122353]
[1740038172652,3.65191,2738.3,2737.9,0.815]
[1740038175269,3.0,2738.4,2738.0,1.33471528]
[1740038175472,6.65179,2738.4,2738.0,1.33471528]
[1740038175661,3.6517,2738.5,2738.1,0.7704]
[1740038176264,3.6517,2738.5,2738.3,0.7704]
[1740038182176,7.30343,2738.5,2738.3,0.7704]
[1740038182472,3.6517,2738.5,2738.3,0.7704]
[1740038183356,3.65144,2738.7,2738.3,0.7704]
[1740038183357,3.0,2738.7,2738.3,0.7704]
[1740038183555,6.65141,2738.7,2738.3,0.7704]
[1740038184277,3.65176,2738.4,2738.3,0.7704]
[1740038184481,3.65176,2738.4,2737.9,0.8069]
[1740038184482,3.652,2738.3,2737.9,0.8069]
[1740038184780,3.652,2738.3,2737.9,1.41232553]
[1740038184977,3.65213,2738.2,2737.9,1.41232553]
[1740038185278,3.65213,2738.2,2738.0,0.26]
[1740038186981,7.30429,2738.2,2737.9,0.8069]
[1740038187165,3.65213,2738.2,2738.0,0.26]
[1740038190895,3.65211,2738.2,2738.0,0.26]
[1740038192412,3.65211,2738.2,2738.1,0.26]
[1740038201934,3.65182,2738.4,2738.1,0.26]
[1740038201935,7.3037,2738.4,2738.1,0.26]
[1740038202136,3.65182,2738.4,2738.1,0.26]
[1740038202441,3.65178,2738.4,2738.1,0.26]
[1740038203305,3.65178,2738.4,2738.2,0.7998]
[1740038206973,0.19593399,2738.6,2738.2,0.7998]
[1740038207173,3.65169,2738.5,2738.2,0.7998]
[1740038207876,3.84743399,2738.6,2738.2,0.7998]
[1740038208676,7.49902399,2738.6,2738.2,0.7998]
[1740038208871,3.84743399,2738.6,2738.2,0.7998]
[1740038209338,3.65166,2738.5,2738.2,0.7998]
[1740038210482,0.19593399,2738.6,2738.4,1.33471528]
[1740038210791,0.19593399,2738.6,2738.5,0.8257]
[1740038220573,0.19593399,2738.6,2738.2,9.54071528]
[1740038220763,0.19593399,2738.6,2738.3,0.764]
[1740038221074,0.19593399,2738.6,2738.3,2.18568153]
[1740038221375,3.84746399,2738.6,2738.3,0.764]
[1740038221572,3.65166,2738.5,2738.2,8.206]
[1740038221772,4.60876399,2738.6,2738.3,0.259]
[1740038222834,0.19593399,2738.6,2738.3,0.259]
[1740038223650,3.84744399,2738.6,2738.3,0.259]
[1740038226618,3.84744399,2738.6,2738.3,0.86631153]
[1740038227801,3.84744399,2738.6,2738.3,0.259]
[1740038228514,3.65176,2738.4,2738.3,0.259]
[1740038229416,3.65176,2738.4,2737.9,9.0203]
[1740038229719,3.65176,2738.4,2738.0,0.259]
[1740038230126,4.41264,2738.5,2738.0,0.259]
[1740038230343,4.41264,2738.5,2738.1,1.658405]
[1740038230701,3.65177,2738.4,2738.1,1.658405]
[1740038230923,0.761,2738.5,2738.1,1.658405]
[1740038231639,4.41264,2738.5,2738.1,1.658405]
[1740038233041,0.761,2738.5,2738.1,1.658405]
[1740038233240,0.761,2738.5,2737.9,12.67263]
[1740038233241,3.65198,2738.3,2738.2,0.259]
[1740038235330,3.65177,2738.4,2738.2,0.259]
[1740038237506,0.19593399,2738.6,2738.2,0.259]
[1740038237711,3.65166,2738.5,2738.2,0.259]
[1740038239625,3.84747399,2738.6,2738.2,0.259]
[1740038239825,0.19593399,2738.6,2738.2,2.35081528]
[1740038241807,0.19593399,2738.6,2738.2,6.00278528]
[1740038242505,0.19593399,2738.6,2738.2,2.35081528]
[1740038243232,0.19593399,2738.6,2738.2,6.00278528]
[1740038243851,0.19593399,2738.6,2738.3,0.7638]
[1740038244606,0.19593399,2738.6,2738.3,4.41562]
[1740038249255,0.19593399,2738.6,2738.3,0.7638]
[1740038249432,0.19593399,2738.6,2738.2,2.55920781]
[1740038249749,0.19593399,2738.6,2738.2,1.22449253]
[1740038249750,0.7521,2738.5,2738.2,1.22449253]
[1740038250123,0.7521,2738.5,2738.3,0.259]
[1740038250536,4.40383,2738.5,2738.3,0.259]
[1740038250732,3.65185,2738.4,2737.9,9.0002]
[1740038250931,3.65185,2738.4,2738.0,0.259]
[1740038251451,0.7521,2738.5,2738.0,0.259]
[1740038251633,4.40376,2738.5,2738.0,2.04887453]
[1740038255060,3.65178,2738.4,2738.0,2.04887453]
[1740038256359,3.65178,2738.4,2738.0,1.78987453]
[1740038256658,3.65178,2738.4,2738.1,0.259]
[1740038264969,3.65192,2738.3,2738.1,0.259]
[1740038265465,3.65203,2738.2,2738.1,0.259]
[1740038265666,3.6519,2738.3,2738.1,0.259]
[1740038265846,3.65178,2738.4,2738.1,0.259]
[1740038266558,3.65192,2738.3,2738.1,0.259]
[1740038268438,4.40374,2738.5,2738.1,0.259]
[1740038268634,3.65186,2738.4,2738.1,0.259]
[1740038269176,4.40374,2738.5,2738.1,0.259]
[1740038269471,1.2120674,2738.5,2737.9,2.12891528]
[1740038269664,3.65197,2738.3,2738.0,0.259]
[1740038269861,3.65197,2738.3,2737.9,0.7942]
[1740038270036,3.65197,2738.3,2738.0,0.259]
[1740038271674,3.65197,2738.3,2737.9,2.12891528]
[1740038271853,3.65197,2738.3,2738.0,0.259]
[1740038274177,3.65216,2738.1,2738.0,0.259]
[1740038274352,3.65216,2738.1,2737.7,0.7993]
[1740038274556,4.48136,2738.1,2737.8,0.259]
[1740038274965,3.65259,2737.8,2737.5,8.207]
[1740038275282,3.65271,2737.7,2737.6,0.259]
[1740038275479,3.65283,2737.6,2737.5,8.207]
[1740038275682,3.65283,2737.6,2737.5,0.259]
[1740038276471,3.65283,2737.6,2737.3,0.8176]
[1740038276775,3.65283,2737.6,2737.4,0.259]
[1740038277970,4.44328,2737.8,2737.4,0.259]
[1740038278170,5.252862,2737.8,2737.4,0.259]
[1740038278379,8.853862,2737.8,2737.4,0.259]
[1740038278576,5.201182,2737.8,2737.4,0.259]
[1740038278805,3.65273,2737.7,2737.4,1.59371528]
[1740038280646,3.65296,2737.5,2737.4,0.259]
[1740038281180,7.30553,2737.7,2737.4,0.259]
[1740038281683,3.65273,2737.7,2737.4,0.259]
[1740038282185,4.457163,2737.7,2737.4,0.259]
[1740038282344,3.65273,2737.7,2737.4,0.259]
[1740038284903,3.65287,2737.6,2737.4,0.259]
[1740038285271,3.65272,2737.7,2737.4,0.259]
[1740038285977,3.65305,2737.5,2737.4,0.259]
[1740038287569,3.65305,2737.5,2737.2,1.33471528]
[1740038287783,3.65305,2737.5,2737.4,0.259]
[1740038288509,3.65305,2737.5,2737.2,1.33471528]
[1740038288698,3.65305,2737.5,2737.3,0.259]
[1740038288902,3.6531,2737.4,2737.3,0.259]
[1740038290711,3.65278,2737.7,2737.3,0.259]
[1740038290999,3.653,2737.5,2737.3,0.259]
[1740038294012,3.653,2737.5,2737.2,1.33471528]
[1740038294197,3.653,2737.5,2737.2,1.59371528]
[1740038295309,4.4307,2737.5,2737.2,1.33471528]
[1740038295614,4.4307,2737.5,2737.2,1.59371528]
[1740038296876,3.653,2737.5,2737.2,1.59371528]
[1740038299079,7.30608,2737.5,2737.2,1.59371528]
[1740038299480,3.653,2737.5,2737.2,1.59371528]
[1740038300079,7.30606,2737.5,2737.2,1.59371528]
[1740038300279,3.653,2737.5,2737.2,1.59371528]
[1740038300812,3.653,2737.5,2737.2,1.33471528]
[1740038301111,3.653,2737.5,2737.2,1.59371528]
[1740038302114,3.653,2737.5,2737.2,2.40191528]
[1740038307523,3.653,2737.5,2737.2,2.14291528]
[1740038307820,3.65328,2737.3,2737.2,0.259]
[1740038309588,3.65328,2737.3,2736.9,5.31505994]
[1740038309589,3.65342,2737.2,2737.1,0.259]
[1740038310519,3.65328,2737.3,2737.1,0.259]
[1740038316631,8.04379,2737.4,2737.1,0.259]
[1740038317026,3.601,2737.4,2737.2,1.33471528]
[1740038317230,3.601,2737.4,2737.3,0.7519]
[1740038320025,3.65283,2737.6,2737.3,0.7519]
[1740038324748,3.65298,2737.5,2737.3,0.7519]
[1740038324949,3.65283,2737.6,2737.2,1.33471528]
[1740038324950,5.201013,2737.6,2737.2,1.33471528]
[1740038325145,3.65311,2737.4,2737.2,1.33471528]
[1740038326224,3.65315,2737.4,2737.1,0.8071]
[1740038326432,3.65315,2737.4,2737.2,0.259]
[1740038327141,3.65315,2737.4,2737.2,1.59371528]
[1740038328966,3.65315,2737.4,2737.2,0.259]
[1740038329831,3.65323,2737.3,2736.9,6.68807522]
[1740038330156,3.65323,2737.3,2737.0,0.259]
[1740038331269,3.65334,2737.3,2737.0,0.259]
[1740038331762,3.65338,2737.2,2737.0,0.259]
[1740038332069,3.6535,2737.1,2736.9,5.35335994]
[1740038332219,4.466813,2737.2,2737.1,0.259]
[1740038332554,3.65361,2737.1,2737.0,0.259]
[1740038332958,4.466803,2737.2,2737.0,0.259]
[1740038333167,8.120273,2737.2,2736.9,4.78345994]
[1740038333363,4.466803,2737.2,2736.9,4.78345994]
[1740038333660,3.65363,2737.0,2736.9,4.78345994]
[1740038333829,4.45443,2737.0,2736.9,4.78345994]
[1740038334323,4.45443,2737.0,2736.9,4.52445994]
[1740038334518,3.6539,2736.8,2736.7,0.259]
[1740038335150,4.4018,2737.0,2736.4,0.7813]
[1740038335357,3.65416,2736.6,2736.5,0.259]
[1740038336666,3.65403,2736.7,2736.3,1.33471528]
[1740038336857,3.65432,2736.5,2736.4,0.259]
[1740038337041,3.65403,2736.7,2736.4,0.259]
[1740038337243,3.65403,2736.7,2736.5,1.33471528]
[1740038338258,4.4341276,2736.7,2736.5,1.33471528]
[1740038339040,3.65416,2736.6,2736.5,1.33471528]
[1740038343672,7.3087,2736.5,2736.2,2.14891528]
[1740038343986,3.6543,2736.5,2736.4,0.259]
[1740038344562,3.6543,2736.5,2736.2,2.14891528]
[1740038344764,3.6543,2736.5,2736.3,0.259]
[1740038345060,3.6543,2736.5,2736.4,0.259]
[1740038345694,3.6543,2736.5,2736.2,2.14891528]
[1740038345852,3.6543,2736.5,2736.3,0.259]
[1740038347879,3.6543,2736.5,2736.3,1.59371528]
[1740038349489,3.65443,2736.4,2736.3,1.59371528]
[1740038349694,3.6543,2736.5,2736.3,1.59371528]
[1740038351658,3.65443,2736.4,2736.3,1.59371528]
[1740038351883,7.30868,2736.5,2736.3,1.59371528]
[1740038352194,3.6543,2736.5,2736.3,1.59371528]
[1740038352557,7.3087,2736.5,2736.3,1.59371528]
[1740038352760,3.65443,2736.4,2736.3,0.259]
[1740038352955,3.65457,2736.3,2736.2,0.259]
[1740038353377,7.4324,2736.2,2736.1,0.0408]
[1740038353672,12.06076282,2736.2,2736.1,0.0408]
[1740038353917,13.28840481,2736.2,2736.1,0.0408]
[1740038354782,12.73840481,2736.2,2736.1,0.0408]
[1740038368389,13.28840481,2736.2,2736.1,0.0408]
[1740038384657,14.62492893,2736.2,2736.1,0.0408]
[1740038386057,6.65577,2735.4,2735.3,0.8234]
[1740038386264,10.25677,2735.4,2735.3,0.8234]
[1740038390721,3.65617,2735.1,2735.0,0.7719]
[1740038391020,3.65617,2735.1,2735.0,1.0319]
[1740038391527,3.65684,2734.6,2734.5,0.7719]
[1740038391725,3.65684,2734.6,2734.5,1.0319]
[1740038392950,3.65684,2734.6,2734.5,0.7719]
[1740038404298,3.65751,2734.1,2734.0,2.75782366]
[1740038404605,3.65737,2734.2,2734.0,2.75782366]
[1740038404801,3.65751,2734.1,2734.0,2.75782366]
[1740038405105,3.65737,2734.2,2734.1,0.8156]
[1740038405281,3.65737,2734.2,2734.1,1.19904237]
[1740038405775,3.65737,2734.2,2734.1,0.8156]
[1740038405980,3.65737,2734.2,2734.1,1.0766]
[1740038406720,3.65703,2734.5,2734.2,0.7528]
[1740038407002,3.65663,2734.8,2734.4,0.8265]
[1740038407207,3.601,2735.2,2734.3,2.75782366]
[1740038407208,3.65685,2734.6,2734.5,1.18493237]
[1740038407726,3.65685,2734.6,2734.5,0.8265]
[1740038407920,3.65685,2734.6,2734.5,1.0875]
[1740038414688,3.601,2734.9,2734.5,1.0875]
[1740038415030,3.6567,2734.7,2734.6,0.7772]
[1740038418939,3.65657,2734.8,2734.6,0.7772]
[1740038419137,7.31325,2734.8,2734.6,0.7772]
[1740038419452,3.65637,2735.0,2734.6,0.7772]
[1740038419631,3.65644,2734.9,2734.6,0.7772]
[1740038419800,3.65644,2734.9,2734.7,0.7905]
[1740038420238,3.65637,2735.0,2734.7,0.7905]
[1740038420534,3.65639,2735.0,2734.7,0.7905]
[1740038423238,3.601,2735.1,2734.9,0.766]
[1740038423443,3.601,2735.1,2734.9,3.52382366]
[1740038423650,3.601,2735.1,2734.9,3.87620603]
[1740038423938,3.65607,2735.2,2734.9,3.87620603]
[1740038424297,3.65607,2735.2,2734.9,1.11838237]
[1740038424515,3.65624,2735.1,2734.9,0.766]
[1740038425526,3.65607,2735.2,2734.9,0.766]
[1740038426445,3.65619,2735.1,2734.9,0.766]
[1740038427128,3.6563,2735.0,2734.9,0.766]
[1740038427641,3.65607,2735.2,2734.9,0.766]
[1740038427960,3.65626,2735.1,2734.9,0.766]
[1740038428342,3.65607,2735.2,2734.9,0.766]
[1740038428518,3.65607,2735.2,2734.9,1.20827]
[1740038428717,3.65607,2735.2,2734.9,0.766]
[1740038429076,3.65617,2735.1,2734.9,0.766]
[1740038430869,3.65617,2735.1,2735.0,0.26]
[1740038431229,3.65617,2735.1,2734.9,0.766]
[1740038431429,3.65617,2735.1,2735.0,0.26]
[1740038433767,3.6563,2735.0,2734.9,0.766]
[1740038433932,3.6563,2735.0,2734.9,1.026]
[1740038435266,3.65617,2735.1,2734.9,1.026]
[1740038435649,3.6563,2735.0,2734.9,1.026]
[1740038436866,3.65617,2735.1,2734.9,1.026]
[1740038437086,7.31245,2735.1,2734.9,1.026]
[1740038437984,3.6563,2735.0,2734.9,1.026]
[1740038438174,3.65617,2735.1,2734.9,1.026]
[1740038438855,3.601,2735.3,2734.9,3.78382366]
[1740038439058,3.601,2735.3,2734.9,4.16220603]
[1740038439370,7.25691,2735.3,2734.9,3.78382366]
[1740038439574,3.65604,2735.2,2734.9,3.78382366]
[1740038442055,7.31218,2735.2,2734.9,0.766]
[1740038442257,3.601,2735.3,2735.0,0.26]
[1740038442569,7.257,2735.3,2735.1,0.26]
[1740038444598,3.656,2735.3,2735.1,0.26]
[1740038446892,3.656,2735.3,2735.2,0.7788]
[1740038447299,3.65603,2735.2,2735.1,0.26]
[1740038449890,7.312,2735.3,2735.1,1.0388]
[1740038450091,3.65603,2735.2,2735.1,1.0388]
[1740038451651,3.65603,2735.2,2735.1,0.26]
[1740038451767,3.65633,2735.0,2734.4,0.8]
[1740038452076,3.65633,2735.0,2734.5,0.26]
[1740038452277,7.31274,2735.0,2734.5,0.26]
[1740038452505,3.65633,2735.0,2734.5,0.26]
[1740038453279,3.6566,2734.8,2734.4,0.8]
[1740038453607,3.65677,2734.7,2734.5,0.26]
[1740038454689,3.65651,2734.9,2734.5,0.26]
[1740038455812,3.65665,2734.8,2734.6,0.26]
[1740038456820,7.31283,2735.0,2734.7,0.7771]